bitfinex/quotes_SOLUSD_20250414
["timestamp","ask_amount","ask_price","bid_price","bid_amount"]
[1744666478021,0.063,129.54,129.53,154.7869534]
[1744666480521,0.063,129.54,129.53,154.92911497]
[1744666480707,0.063,129.55,129.53,154.92911497]
[1744666480904,0.063,129.55,129.54,53.3667534]
[1744666481108,0.063,129.55,129.54,136.3667534]
[1744666481826,0.063,129.55,129.54,144.0863534]
[1744666494439,0.063,129.55,129.54,101.39295068]
[1744666495339,0.063,129.55,129.54,93.67335068]
[1744666498654,2.90763111,129.55,129.54,93.67335068]
[1744666499544,2.90763111,129.55,129.54,10.67335068]
[1744666499744,2.90763111,129.55,129.53,10.67335068]
[1744666500127,0.063,129.55,129.53,10.67335068]
[1744666500944,2.84413519,129.54,129.52,10.67335068]
[1744666501332,2.84413519,129.54,129.51,93.67335068]
[1744666501537,2.84413519,129.54,129.51,83.0]
[1744666501757,2.84413519,129.54,129.51,93.67335068]
[1744666502245,2.84413519,129.53,129.51,93.67335068]
[1744666503349,7.7198,129.54,129.51,93.67335068]
[1744666505153,7.782,129.55,129.51,93.67335068]
[1744666505531,2.8424915,129.54,129.51,93.67335068]
[1744666506349,2.8424915,129.53,129.51,93.67335068]
[1744666506960,7.782,129.55,129.51,93.67335068]
[1744666508157,2.84368795,129.54,129.51,93.67335068]
[1744666508645,2.84368795,129.53,129.51,93.67335068]
[1744666509553,7.782,129.55,129.51,93.67335068]
[1744666510358,10.56368987,129.54,129.51,93.67335068]
[1744666511233,2.84378987,129.53,129.51,93.67335068]
[1744666512738,7.7199,129.54,129.51,93.67335068]
[1744666513354,7.7199,129.54,129.52,10.67335068]
[1744666513553,7.782,129.55,129.52,10.67335068]
[1744666514145,2.84054002,129.54,129.52,10.67335068]
[1744666514833,2.84054002,129.53,129.52,10.67335068]
[1744666515453,2.84054002,129.53,129.52,101.39415068]
[1744666515839,0.063,129.55,129.52,101.39415068]
[1744666516036,0.063,129.55,129.54,10.67335068]
[1744666516863,2.90191634,129.55,129.54,10.67335068]
[1744666520455,2.90191634,129.55,129.54,93.67335068]
[1744666520661,2.90191634,129.55,129.54,101.39295068]
[1744666523343,2.90191634,129.55,129.54,144.0863534]
[1744666524365,0.063,129.55,129.54,144.0863534]
[1744666524660,0.063,129.55,129.54,101.39295068]
[1744666537572,0.063,129.55,129.54,90.7196]
[1744666537876,0.063,129.55,129.54,101.39295068]
[1744666540542,0.063,129.55,129.54,93.67335068]
[1744666542569,0.063,129.55,129.54,83.0]
[1744666543383,2.90289969,129.55,129.54,83.0]
[1744666543989,10.62189969,129.55,129.54,83.0]
[1744666544577,10.62189969,129.55,129.52,93.67335068]
[1744666545480,10.55969969,129.54,129.52,93.67335068]
[1744666546189,7.7822,129.55,129.52,93.67335068]
[1744666547767,2.84025966,129.54,129.52,93.67335068]
[1744666548380,10.55985966,129.54,129.52,93.67335068]
[1744666548969,7.7196,129.54,129.52,93.67335068]
[1744666549966,7.782,129.55,129.52,93.67335068]
[1744666550690,2.84029902,129.54,129.52,93.67335068]
[1744666551682,2.84029902,129.53,129.52,93.67335068]
[1744666552888,2.84029902,129.54,129.52,93.67335068]
[1744666553885,7.782,129.55,129.52,93.67335068]
[1744666557886,7.782,129.55,129.52,83.0]
[1744666559487,7.7202,129.53,129.52,83.0]
[1744666559888,10.56196969,129.53,129.52,83.0]
[1744666561094,2.84176969,129.53,129.52,93.67335068]
[1744666561471,2.84176969,129.53,129.52,101.39415068]
[1744666564101,0.063,129.55,129.52,101.39415068]
[1744666564400,0.063,129.55,129.53,10.67335068]
[1744666565075,2.84175715,129.54,129.53,10.67335068]
[1744666567384,2.84175715,129.54,129.53,93.67335068]
[1744666570194,2.84175715,129.54,129.53,83.0]
[1744666571400,10.56135715,129.54,129.53,83.0]
[1744666573709,2.84175715,129.54,129.53,83.0]
[1744666579313,2.84175715,129.54,129.52,10.67335068]
[1744666579527,2.84175715,129.53,129.52,10.67335068]
[1744666580192,2.84175715,129.53,129.51,92.3754]
[1744666580488,0.063,129.55,129.51,92.3754]
[1744666580684,0.063,129.55,129.52,10.67335068]
[1744666581612,2.85051932,129.54,129.52,10.67335068]
[1744666582510,2.85051932,129.53,129.52,10.67335068]
[1744666584999,2.85051932,129.53,129.51,103.04875068]
[1744666585816,7.7822,129.55,129.51,103.04875068]
[1744666586496,2.85416246,129.54,129.51,103.04875068]
[1744666586819,2.85416246,129.54,129.51,95.32765068]
[1744666587704,2.85416246,129.53,129.51,95.32765068]
[1744666588219,7.7822,129.55,129.51,95.32765068]
[1744666588601,18.64964886,129.54,129.51,83.0]
[1744666588924,29.32299954,129.54,129.48,93.70335068]
[1744666589996,10.57652664,129.53,129.48,101.42605068]
[1744666590206,18.64964886,129.52,129.48,83.03]
[1744666591411,10.57822664,129.51,129.48,83.03]
[1744666592012,2.85632664,129.5,129.48,83.03]
[1744666593018,7.7219,129.51,129.48,83.03]
[1744666595108,10.57195503,129.5,129.48,83.03]
[1744666596014,7.7222,129.5,129.48,83.03]
[1744666596722,7.7222,129.5,129.48,0.03]
[1744666597200,18.64964886,129.5,129.48,0.03]
[1744666598227,2.84747224,129.49,129.48,0.03]
[1744666599420,10.57007224,129.49,129.48,0.03]
[1744666600315,7.7226,129.49,129.48,0.03]
[1744666604132,26.79873357,129.49,129.48,0.03]
[1744666604338,40.31669747,129.49,129.48,0.03]
[1744666606329,46.64404037,129.49,129.48,0.03]
[1744666607520,57.04404037,129.49,129.48,0.03]
[1744666608344,50.71669747,129.49,129.48,0.03]
[1744666612343,50.85885904,129.49,129.48,0.03]
[1744666613620,50.85885904,129.49,129.48,0.0001]
[1744666614530,45.07613357,129.46,129.45,0.03]
[1744666614719,55.74948425,129.46,129.45,0.03]
[1744666615343,58.59409747,129.46,129.45,0.03]
[1744666615545,66.31839747,129.46,129.45,0.03]
[1744666616254,66.46055904,129.46,129.45,0.0001]
[1744666616432,70.28547037,129.46,129.45,0.0001]
[1744666617442,26.94319514,129.45,129.44,0.0001]
[1744666617623,40.46115904,129.45,129.44,0.0001]
[1744666618046,45.21829514,129.42,129.41,0.03]
[1744666618231,66.29164582,129.42,129.41,0.03]
[1744666619241,66.29164582,129.42,129.4,0.03]
[1744666619242,116.96104854,129.42,129.39,0.6910148]
[1744666619443,18.64964886,129.35,129.31,10.67335068]
[1744666619745,18.64964886,129.35,129.32,30.0]
[1744666620243,29.32299954,129.35,129.32,30.0]
[1744666621253,18.64964886,129.35,129.32,30.0]
[1744666621749,26.38084886,129.35,129.32,30.0]
[1744666622654,18.64964886,129.35,129.32,40.67335068]
[1744666623248,18.41422314,129.37,129.32,48.40595068]
[1744666623445,26.0,129.35,129.33,10.67335068]
[1744666625754,26.0,129.35,129.32,37.7326]
[1744666625947,26.0,129.35,129.33,10.67335068]
[1744666627756,26.0,129.35,129.32,48.40595068]
[1744666628263,26.0,129.35,129.33,10.67335068]
[1744666629355,18.64964886,129.36,129.33,10.67335068]
[1744666629864,18.64964886,129.36,129.32,131.40595068]
[1744666631290,18.64964886,129.36,129.32,120.7326]
[1744666631568,26.38004886,129.36,129.32,131.40595068]
[1744666631737,37.05339954,129.36,129.32,113.0]
[1744666632564,37.05339954,129.36,129.32,120.7326]
[1744666633776,37.05339954,129.36,129.32,113.0]
[1744666634368,37.05339954,129.36,129.32,120.7327]
[1744666635660,26.38004886,129.36,129.32,120.7327]
[1744666635860,37.05339954,129.36,129.32,120.7327]
[1744666638463,37.05339954,129.36,129.32,113.0]
[1744666638846,37.05339954,129.36,129.32,123.67335068]
[1744666639045,26.38004886,129.36,129.32,123.67335068]
[1744666639264,37.05339954,129.36,129.32,113.0]
[1744666640970,26.0,129.33,129.32,113.0]
[1744666642251,33.7321,129.33,129.32,113.0]
[1744666642860,63.05509954,129.33,129.32,113.0]
[1744666643066,63.05509954,129.33,129.32,30.0]
[1744666644358,63.48158425,129.33,129.32,30.0]
[1744666644643,63.62374582,129.33,129.32,30.0]
[1744666644952,26.0,129.29,129.26,83.03]
[1744666645147,36.67335068,129.29,129.26,83.03]
[1744666645466,11.09983539,129.27,129.26,0.03]
[1744666645663,0.42648471,129.27,129.26,0.03]
[1744666645866,11.09983539,129.27,129.26,0.03]
[1744666646261,18.83553539,129.27,129.26,0.03]
[1744666646567,29.37553539,129.27,129.26,0.03]
[1744666647270,52.113216,129.27,129.26,0.03]
[1744666648067,47.59869954,129.27,129.26,0.03]
[1744666648370,36.92534886,129.27,129.26,0.03]
[1744666648972,47.59869954,129.27,129.26,0.03]
[1744666649172,37.49399514,129.27,129.26,0.03]
[1744666649473,48.16734582,129.27,129.26,0.03]
[1744666651379,52.02340583,129.27,129.26,0.03]
[1744666653385,52.02340583,129.27,129.19,97.1438]
[1744666653386,44.933972,129.23,129.19,0.03]
[1744666653555,44.64964886,129.2,129.19,0.03]
[1744666653757,45.21829514,129.2,129.19,0.03]
[1744666655167,52.95819514,129.2,129.19,0.03]
[1744666655485,63.63154582,129.2,129.19,0.03]
[1744666655680,52.95819514,129.2,129.19,0.03]
[1744666655973,63.63154582,129.2,129.19,0.03]
[1744666656182,52.95819514,129.2,129.19,0.03]
[1744666656483,0.28432314,129.14,129.13,2.6975105]
[1744666656674,18.933972,129.13,129.06,0.03]
[1744666656848,0.28432314,129.12,129.06,7.7781]
[1744666657049,0.28432314,129.08,129.06,0.03]
[1744666657255,23.61767382,129.08,129.06,0.03]
[1744666657453,20.69162314,129.08,129.0,6.2818]
[1744666657685,18.933972,129.07,129.0,6.2818]
[1744666657860,0.28432314,129.06,129.0,6.2818]
[1744666658260,26.0,129.04,128.98,7.7527]
[1744666658468,18.64964886,129.03,128.97,9.3262]
[1744666658784,26.0,128.96,128.92,10.67335068]
[1744666658961,19.21829514,128.99,128.88,50.45250272]
[1744666658962,19.21829514,128.99,128.88,7.7591]
[1744666659166,26.0,128.96,128.88,27.1569]
[1744666659678,15.0,128.98,128.88,24.59499253]
[1744666659852,18.64964886,128.99,128.9,0.28432314]
[1744666660054,18.64964886,128.99,128.94,16.83589253]
[1744666660277,26.0,128.98,128.9,0.28432314]
[1744666660790,42.83589253,128.98,128.89,6.3874]
[1744666661077,26.0,128.9,128.87,2.6975105]
[1744666661750,18.64964886,128.89,128.87,2.6975105]
[1744666662163,26.0,128.76,128.67,7.7714]
[1744666662387,18.64964886,128.75,128.65,7.7726]
[1744666662675,1.0,128.83,128.65,7.7726]
[1744666662879,26.0,128.76,128.65,8.7726]
[1744666663080,26.0,128.76,128.65,7.7726]
[1744666663261,18.64964886,128.82,128.65,7.7726]
[1744666663461,18.14964886,128.78,128.7,16.83589253]
[1744666663677,18.14964886,128.78,128.65,7.7726]
[1744666663857,26.0,128.83,128.7,16.83589253]
[1744666664063,0.53293514,128.84,128.67,1.0]
[1744666664258,0.53293514,128.84,128.71,27.0]
[1744666664483,0.53293514,128.84,128.76,1.0]
[1744666664685,0.53293514,128.84,128.68,1.0]
[1744666664875,0.53293514,128.84,128.68,6.4397]
[1744666665089,26.0,128.82,128.68,6.4397]
[1744666665256,26.0,128.82,128.69,7.7706]
[1744666665574,26.0,128.82,128.7,27.01919675]
[1744666665759,0.53293514,128.84,128.69,27.1971]
[1744666665956,0.53293514,128.84,128.79,27.01919675]
[1744666666175,0.53293514,128.84,128.76,27.01919675]
[1744666666387,0.53293514,128.84,128.82,27.01919675]
[1744666666565,11.96219293,128.95,128.89,27.01919675]
[1744666666894,27.01919675,128.9,128.69,27.1971]
[1744666667061,1.4079472,128.89,128.79,27.01919675]
[1744666667262,11.96219293,128.88,128.83,27.01919675]
[1744666667475,11.96219293,128.88,128.79,26.0]
[1744666667675,11.96219293,128.88,128.84,27.01919675]
[1744666667882,11.96219293,128.89,128.85,27.01919675]
[1744666668064,11.96219293,128.89,128.82,27.01919675]
[1744666668265,11.96219293,128.89,128.87,27.01919675]
[1744666668584,11.96219293,128.99,128.87,27.01919675]
[1744666668890,11.96219293,128.99,128.89,27.01919675]
[1744666669062,11.96219293,128.99,128.88,27.01919675]
[1744666669261,11.96219293,128.99,128.93,27.01919675]
[1744666669680,27.01919675,129.01,128.94,27.01919675]
[1744666669994,27.01919675,129.04,128.97,27.01919675]
[1744666670197,27.01919675,129.05,128.91,27.1504]
[1744666670493,26.0,129.03,128.91,27.1504]
[1744666670791,27.01919675,128.99,128.91,7.7571]
[1744666670971,12.17719043,129.03,128.93,27.01919675]
[1744666671158,9.3571,129.06,128.94,7.7554]
[1744666671365,6.4882,129.08,128.99,27.01919675]
[1744666671587,8.91754479,129.1,129.0,27.01919675]
[1744666671792,7.7461,129.1,129.0,27.01919675]
[1744666671973,26.0,129.04,128.99,27.01919675]
[1744666672171,26.0,129.04,128.94,54.16339675]
[1744666672172,26.0,129.04,129.0,27.01919675]
[1744666672374,27.01919675,129.06,128.99,27.01919675]
[1744666673270,20.0,129.09,128.95,7.7549]
[1744666673482,26.0,129.06,128.95,34.77409675]
[1744666673700,27.01919675,129.04,128.96,27.01919675]
[1744666673894,27.01919675,129.04,128.97,27.01919675]
[1744666674396,26.0,129.07,128.98,27.01919675]
[1744666674598,27.01919675,129.05,128.97,27.01919675]
[1744666674807,27.01919675,129.04,128.97,27.01919675]
[1744666675007,33.7473,129.08,128.97,27.01919675]
[1744666675307,27.01919675,129.04,128.97,27.01919675]
[1744666675603,33.7473,129.08,128.97,27.01919675]
[1744666675778,27.01919675,129.06,128.99,27.01919675]
[1744666676179,26.0,129.04,128.98,7.753]
[1744666676681,26.0,129.04,128.99,27.01919675]
[1744666676880,27.01919675,129.06,128.94,27.01919675]
[1744666676881,26.0,129.06,128.94,7.7555]
[1744666677108,18.933972,129.05,128.94,34.77469675]
[1744666677293,18.933972,129.05,128.98,27.01919675]
[1744666677600,45.95316875,129.05,128.98,27.01919675]
[1744666678314,18.933972,129.05,128.98,27.01919675]
[1744666678483,18.64964886,129.05,129.0,27.01919675]
[1744666678678,18.64964886,129.05,128.95,27.1422]
[1744666678993,18.64964886,129.05,128.91,20.20744886]
[1744666678994,26.0,128.98,128.89,0.28432314]
[1744666679308,26.0,128.98,128.92,27.01919675]
[1744666679504,27.01919675,128.98,128.87,0.28432314]
[1744666679682,27.01919675,128.98,128.91,27.01919675]
[1744666679888,18.64964886,128.98,128.92,27.01919675]
[1744666680508,26.0,128.93,128.78,38.8259]
[1744666680683,26.0,128.93,128.88,27.01919675]
[1744666680998,0.28432314,128.91,128.8,1.0]
[1744666681319,18.64964886,128.9,128.84,27.01919675]
[1744666681810,18.64964886,128.87,128.78,7.7651]
[1744666682109,18.64964886,128.84,128.75,7.7669]
[1744666682310,27.58784303,128.85,128.74,249.5875]
[1744666682311,18.64964886,128.82,128.74,249.5875]
[1744666682487,18.64964886,128.82,128.73,14.0337]
[1744666682813,26.0,128.77,128.72,27.01919675]
[1744666682997,26.0,128.77,128.73,27.01919675]
[1744666683191,26.0,128.77,128.74,40.96530567]
[1744666683392,18.64964886,128.79,128.75,40.96530567]
[1744666683598,18.64964886,128.79,128.76,40.96530567]
[1744666683980,0.56864628,128.81,128.71,19.4224]
[1744666683981,26.0,128.81,128.71,19.4224]
[1744666684181,26.0,128.81,128.79,40.96530567]
[1744666684409,7.7573,128.91,128.8,40.96530567]
[1744666684586,18.933972,128.87,128.82,40.96530567]
[1744666684787,18.933972,128.89,128.84,40.96530567]
[1744666684998,0.14216157,128.89,128.84,40.96530567]
[1744666685509,48.72260567,128.91,128.85,40.96530567]
[1744666685510,26.0,128.88,128.85,40.96530567]
[1744666685716,26.0,128.88,128.82,40.96530567]
[1744666686215,59.89927767,128.91,128.83,7.7621]
[1744666686519,26.0,128.88,128.85,40.96530567]
[1744666686812,59.89927767,128.91,128.85,40.96530567]
[1744666687108,18.933972,128.91,128.85,40.96530567]
[1744666687284,26.0,128.89,128.85,40.96530567]
[1744666687481,26.0,128.89,128.86,40.96530567]
[1744666687699,26.0,128.89,128.84,40.96530567]
[1744666687891,20.9196,128.98,128.88,40.96530567]
[1744666688114,40.96530567,128.96,128.88,40.96530567]
[1744666688324,8.03802314,128.97,128.88,40.96530567]
[1744666688926,26.0,128.93,128.89,40.96530567]
[1744666689308,26.0,128.93,128.88,7.7585]
[1744666689525,59.61495453,128.92,128.84,40.96530567]
[1744666689826,59.61495453,128.92,128.85,40.96530567]
[1744666690028,60.04143924,128.93,128.85,40.96530567]
[1744666690219,18.64964886,128.91,128.86,40.96530567]
[1744666690918,0.42648471,128.92,128.87,40.96530567]
[1744666691724,0.42648471,128.92,128.86,7.7602]
[1744666691921,0.42648471,128.92,128.86,48.72550567]
[1744666692230,0.42648471,128.92,128.86,40.96530567]
[1744666692399,0.42648471,128.92,128.83,7.7621]
[1744666693020,0.42648471,128.92,128.86,40.96530567]
[1744666693606,18.64964886,128.89,128.83,7.7621]
[1744666693911,18.64964886,128.89,128.82,48.72780567]
[1744666694112,18.64964886,128.87,128.81,40.96530567]
[1744666694319,18.64964886,128.87,128.82,40.96530567]
[1744666694533,18.64964886,128.87,128.83,40.96530567]
[1744666694700,19.21829514,128.9,128.86,40.96530567]
[1744666694905,26.0,128.93,128.89,40.96530567]
[1744666695122,26.0,128.93,128.9,40.96530567]
[1744666695320,0.14216157,128.94,128.9,40.96530567]
[1744666695528,0.14216157,128.94,128.85,26.0]
[1744666695824,48.71980567,128.96,128.9,40.96530567]
[1744666696131,30.0,128.91,128.9,40.96530567]
[1744666696335,30.0,128.91,128.85,15.45894561]
[1744666696511,30.0,128.91,128.88,40.96530567]
[1744666696714,30.0,128.91,128.89,40.96530567]
[1744666696908,30.0,128.91,128.88,40.96530567]
[1744666697214,30.0,128.91,128.87,40.96530567]
[1744666697829,30.0,128.91,128.84,19.4037]
[1744666698036,30.0,128.91,128.87,40.96530567]
[1744666698202,59.61495453,128.91,128.85,48.72590567]
[1744666698614,40.96530567,128.9,128.83,40.96530567]
[1744666698821,40.96530567,128.9,128.84,7.7613]
[1744666699016,18.64964886,128.91,128.73,38.8409]
[1744666699017,40.96530567,128.85,128.73,38.8409]
[1744666699215,40.96530567,128.83,128.77,40.96530567]
[1744666699426,40.96530567,128.84,128.78,40.96530567]
[1744666699815,18.64964886,128.84,128.78,40.96530567]
[1744666700132,59.61495453,128.84,128.78,40.96530567]
[1744666700631,67.37655453,128.84,128.78,40.96530567]
[1744666700929,67.37655453,128.84,128.77,7.7655]
[1744666701124,26.0,128.85,128.79,40.96530567]
[1744666701337,18.64964886,128.84,128.77,7.7655]
[1744666701502,18.64964886,128.84,128.79,40.96530567]
[1744666702014,18.64964886,128.84,128.73,7.7681]
[1744666702207,18.64964886,128.81,128.73,7.7681]
[1744666702412,67.37865453,128.81,128.75,40.96530567]
[1744666702626,26.0,128.76,128.65,8.1296]
[1744666702816,18.933972,128.75,128.65,7.7729]
[1744666703019,26.0,128.72,128.64,7.7736]
[1744666703341,18.64964886,128.71,128.63,7.7741]
[1744666703635,18.64964886,128.69,128.63,40.96530567]
[1744666703939,18.64964886,128.68,128.62,10.5022105]
[1744666704128,0.42648471,128.67,128.62,2.7275105]
[1744666704435,18.64964886,128.64,128.62,2.7275105]
[1744666704635,0.42648471,128.66,128.62,2.7275105]
[1744666705230,0.28432314,128.66,128.62,2.7275105]
[1744666705434,0.28432314,128.64,128.62,2.7275105]
[1744666705608,18.64964886,128.63,128.62,2.7275105]
[1744666705809,19.21829514,128.63,128.62,2.7275105]
[1744666706235,60.18360081,128.63,128.62,2.7275105]
[1744666706419,19.21829514,128.63,128.62,2.7275105]
[1744666706622,18.64964886,128.63,128.62,2.7275105]
[1744666706820,18.64964886,128.64,128.62,2.7275105]
[1744666707034,19.21829514,128.63,128.62,2.7275105]
[1744666708336,60.18360081,128.63,128.62,2.7275105]
[1744666709339,19.21829514,128.63,128.62,2.7275105]
[1744666709541,60.18360081,128.63,128.62,2.7275105]
[1744666709739,26.0,128.63,128.62,2.7275105]
[1744666709921,18.64964886,128.63,128.62,2.7275105]
[1744666710535,0.14216157,128.66,128.62,2.7275105]
[1744666710727,0.14216157,128.68,128.62,51.46751617]
[1744666711044,0.14216157,128.67,128.62,47.19202687]
[1744666711239,18.53749293,128.75,128.64,40.96530567]
[1744666711413,0.14216157,128.71,128.66,40.96530567]
[1744666711619,11.96219293,128.75,128.69,40.96530567]
[1744666711818,0.14216157,128.74,128.64,40.96530567]
[1744666712131,60.18360081,128.74,128.68,40.96530567]
[1744666712323,60.18360081,128.74,128.68,43.37495047]
[1744666712642,41.10746724,128.75,128.69,48.73590567]
[1744666712827,40.96530567,128.76,128.7,40.96530567]
[1744666713226,0.14216157,128.78,128.72,40.96530567]
[1744666713227,0.28432314,128.78,128.72,40.96530567]
[1744666713427,11.96219293,128.82,128.76,40.96530567]
[1744666713644,52.9274986,128.82,128.76,40.96530567]
[1744666713857,11.96219293,128.82,128.78,40.96530567]
[1744666714043,11.96219293,128.82,128.79,40.96530567]
[1744666714237,11.96219293,128.82,128.81,40.96530567]
[1744666714437,40.96530567,128.87,128.81,7.7628]
[1744666714645,40.96530567,128.86,128.81,7.7628]
[1744666714844,40.96530567,128.86,128.81,48.72810567]
[1744666715043,40.96530567,128.86,128.81,7.7628]
[1744666716026,40.96530567,128.84,128.76,7.7663]
[1744666716231,0.56864628,128.84,128.77,40.96530567]
[1744666716425,0.56864628,128.84,128.78,7.7651]
[1744666716426,0.42648471,128.84,128.78,7.7651]
[1744666716729,40.96530567,128.83,128.78,7.7651]
[1744666717045,18.64964886,128.83,128.78,48.73040567]
[1744666717616,26.0,128.84,128.79,40.96530567]
[1744666717818,26.0,128.84,128.78,7.7651]
[1744666718018,26.0,128.84,128.78,48.73040567]
[1744666718648,66.96530567,128.84,128.78,7.7651]
[1744666718847,40.96530567,128.83,128.78,7.7651]
[1744666719946,40.96530567,128.82,128.77,7.7656]
[1744666720148,18.64964886,128.83,128.77,7.7656]
[1744666720351,40.96530567,128.82,128.77,7.7656]
[1744666720645,40.96530567,128.82,128.76,7.7663]
[1744666721151,40.96530567,128.8,128.73,19.4191]
[1744666721454,0.28432314,128.81,128.74,40.96530567]
[1744666721455,0.56864628,128.81,128.74,40.96530567]
[1744666721640,40.96530567,128.8,128.74,40.96530567]
[1744666721851,40.96530567,128.8,128.73,60.38440567]
[1744666722457,40.96530567,128.8,128.74,7.7675]
[1744666722628,40.96530567,128.79,128.7,19.4236]
[1744666722951,0.28432314,128.79,128.71,78.73470567]
[1744666723152,40.96530567,128.77,128.71,78.73470567]
[1744666723325,40.96530567,128.77,128.71,37.7694]
[1744666723526,18.933972,128.76,128.71,30.0]
[1744666723751,0.28432314,128.76,128.7,48.73510567]
[1744666723922,41.24962881,128.76,128.7,48.73510567]
[1744666724531,41.24962881,128.76,128.7,7.7698]
[1744666724854,40.96530567,128.73,128.68,10.1805448]
[1744666725434,40.96530567,128.75,128.69,40.96530567]
[1744666725831,40.96530567,128.75,128.68,10.1805448]
[1744666726140,40.96530567,128.74,128.68,10.1805448]
[1744666726345,40.96530567,128.73,128.68,10.1805448]
[1744666727157,41.24962881,128.74,128.68,10.1805448]
[1744666727341,0.28432314,128.74,128.68,10.1805448]
[1744666727541,18.933972,128.76,128.68,70.57385047]
[1744666727729,40.96530567,128.75,128.69,40.96530567]
[1744666727933,40.96530567,128.75,128.68,70.57385047]
[1744666728344,40.96530567,128.75,128.68,29.6085448]
[1744666728559,40.96530567,128.75,128.68,70.57385047]
[1744666729056,7.764,128.8,128.72,40.96530567]
[1744666729355,18.71264886,128.79,128.73,40.96530567]
[1744666729656,59.67795453,128.79,128.73,40.96530567]
[1744666729842,40.96530567,128.78,128.72,40.96530567]
[1744666730655,40.96530567,128.78,128.72,48.73370567]
[1744666732539,0.063,128.79,128.74,40.96530567]
[1744666732746,0.063,128.79,128.74,48.73240567]
[1744666734272,0.063,128.79,128.73,48.73330567]
[1744666734758,0.063,128.79,128.74,40.96530567]
[1744666737171,0.063,128.79,128.74,48.73260567]
[1744666738368,0.063,128.79,128.75,40.96530567]
[1744666738569,0.063,128.79,128.74,7.7673]
[1744666739144,41.02830567,128.79,128.74,7.7673]
[1744666739445,0.063,128.79,128.72,27.1895]
[1744666739758,0.063,128.79,128.74,40.96530567]
[1744666740271,0.063,128.79,128.73,40.96530567]
[1744666740777,0.063,128.79,128.74,40.96530567]
[1744666741767,0.063,128.79,128.75,48.73220567]
[1744666742466,0.063,128.79,128.75,7.7669]
[1744666742670,0.063,128.79,128.75,51.14185047]
[1744666742975,0.063,128.79,128.78,40.96530567]
[1744666743185,0.063,128.79,128.78,26.98772877]
[1744666744160,0.063,128.79,128.76,110.1822]
[1744666744480,0.063,128.79,128.78,26.98772877]
[1744666744680,0.063,128.79,128.76,110.1822]
[1744666744857,0.063,128.79,128.78,26.98772877]
[1744666745176,0.063,128.79,128.78,7.7651]
[1744666745475,0.063,128.79,128.78,34.75282877]
[1744666746161,0.063,128.79,128.77,7.7657]
[1744666746477,0.063,128.79,128.78,26.98772877]
[1744666748386,0.063,128.79,128.78,34.75282877]
[1744666748770,0.063,128.79,128.78,7.7651]
[1744666748958,0.063,128.79,128.78,34.75282877]
[1744666749296,0.063,128.79,128.78,117.75282877]
[1744666749978,0.0001,128.79,128.78,117.75282877]
[1744666750278,0.063,128.85,128.79,1.5079]
[1744666750482,0.063,128.85,128.84,26.98772877]
[1744666750679,0.063,128.85,128.84,109.98772877]
[1744666751072,0.063,128.85,128.84,83.0]
[1744666751278,0.063,128.85,128.84,109.98772877]
[1744666751964,0.063,128.85,128.84,117.74922877]
[1744666752480,0.063,128.88,128.84,137.15312877]
[1744666752682,0.063,128.88,128.87,26.98772877]
[1744666752979,0.063,128.88,128.87,136.97545754]
[1744666752980,0.0001,128.88,128.87,136.97545754]
[1744666753374,0.0001,128.88,128.87,83.0]
[1744666754089,0.0001,128.88,128.87,109.98772877]
[1744666754662,0.0001,128.88,128.87,83.0]
[1744666757182,0.0001,128.88,128.87,109.98772877]
[1744666757887,0.0001,128.88,128.87,112.39737357]
[1744666758465,0.0001,128.88,128.87,85.4096448]
[1744666758662,26.98782877,128.88,128.87,2.4096448]
[1744666758965,0.0001,128.88,128.87,2.4096448]
[1744666770903,7.7592,128.88,128.87,2.4096448]
[1744666772980,0.0001,128.88,128.87,2.4096448]
[1744666777106,0.0001,128.88,128.87,29.39737357]
[1744666777404,0.0001,128.88,128.87,37.15707357]
[1744666779107,0.0001,128.88,128.87,2.4096448]
[1744666779313,0.0001,128.88,128.87,29.39737357]
[1744666779506,0.0001,128.88,128.87,37.15707357]
[1744666781314,0.0001,128.88,128.87,27.01345314]
[1744666781514,0.0001,128.88,128.87,110.01345314]
[1744666781895,0.0001,128.88,128.87,102.25375314]
[1744666783413,0.0001,128.88,128.87,110.01345314]
[1744666784418,0.0001,128.88,128.87,85.4096448]